[Event "FIDE World Cadets GU12 2022"]
[Site "Batumi"]
[Date "2022.09.17"]
[Round "2.13"]
[White "Semenova, Vasilisa"]
[Black "Saparya Ghosh"]
[Result "1-0"]
[ECO "D31"]
[WhiteElo "1332"]
[BlackElo "1563"]
[Annotator "NA COMBH"]
[PlyCount "109"]
[EventDate "2022.09.16"]
[EventType "swiss"]
[EventCountry "GEO"]
[SourceTitle "playchess.com"]
[Source "ChessBase"]
[SourceQuality "1"]
[TimeControl "5400+30"]

1. d4 {[%emt 0:01:00]} d5 {[%emt 0:02:00]} 2. c4 {[%emt 0:00:00]} e6 {[%emt 0:00:30]} 3. Nc3 {[%emt 0:01:00]} a6 {[%emt 0:05:30]} 4. cxd5 {[%emt 0:00:30]} exd5 {[%emt 0:00:30]} 5. Nf3 {[%emt 0:00:30]} c6 {[%emt 0:04:30]} 6. Bg5 {[%emt 0:01:30]} Be7 {[%emt 0:00:30]} 7. Bxe7 {[%emt 0:00:00]} Qxe7 {[%emt 0:00:30]} 8. e3 {[%emt 0:00:00]} Bf5 {[%emt 0:02:30]} 9. Bd3 {[%emt 0:00:30]} Bxd3 {[%emt 0:01:30]} 10. Qxd3 {[%emt 0:00:30]} Nd7 {[%emt 0:02:30]} 11. a3 {[%emt 0:00:30]} Ngf6 {[%emt 0:00:30]} 12. Rb1 {[%emt 0:00:00]} Ne4 {[%emt 0:06:30]} 13. Nd2 {[%emt 0:00:00]} Nd6 {[%emt 0:01:30]} 14. O-O {[%emt 0:01:30]} O-O {[%emt 0:01:30]} 15. Rbe1 {[%emt 0:00:30]} f5 {[%emt 0:20:30]} 16. f4 {[%emt 0:00:30]} Rae8 {[%emt 0:00:30]} 17. Qe2 {[%emt 0:02:30]} Rf6 {[%emt 0:10:30]} 18. Nf3 {[%emt 0:00:30]} b5 {[%emt 0:05:30]} 19. Ne5 {[%emt 0:00:30]} Nc4 {[%emt 0:00:30]} 20. Nb1 {[%emt 0:18:30]} Ndb6 {[%emt 0:02:30]} 21. Rc1 {[%emt 0:01:30]} Rc8 {[%emt 0:01:30]} 22. Rc2 {[%emt 0:13:30]} Rh6 {[%emt 0:07:30]} 23. Nd2 {[%emt 0:01:30]} Qh4 {[%emt 0:02:30]} 24. h3 {[%emt 0:00:30]} Nxd2 {[%emt 0:06:19]} 25. Qxd2 {[%emt 0:00:30]} Nc4 {[%emt 0:00:00]} 26. Qc3 {[%emt 0:14:30]} Nxe5 {[%emt 0:03:20]} 27. dxe5 {[%emt 0:00:00]} Rg6 {[%emt 0:00:23]} 28. Kh1 {[%emt 0:01:00]} Re8 {[%emt 0:05:26]} 29. Qe1 {[%emt 0:00:30]} Qh5 {[%emt 0:01:29]} 30. Qe2 {[%emt 0:00:00]} Qh4 {[%emt 0:01:29]} 31. Qe1 {[%emt 0:00:00]} Qh6 {[%emt 0:04:05]} 32. Rf3 {[%emt 0:11:30]} Ree6 {[%emt 0:00:40]} 33. Qf2 {[%emt 0:01:30]} Qh5 {[%emt 0:00:42]} 34. Rd2 {[%emt 0:00:30]} Rh6 {[%emt 0:00:23]} 35. Rg3 {[%emt 0:00:30]} Rhg6 {[%emt 0:00:54]} 36. Rxg6 {[%emt 0:08:30]} hxg6 {[%emt 0:00:41]} 37. Qe2 {[%emt 0:00:30]} Qh4 {[%emt 0:00:28]} 38. Kh2 {[%emt 0:02:30]} g5 {[%emt 0:00:58]} 39. g3 {[%emt 0:00:30]} Qh7 {[%emt 0:00:00]} 40. Rc2 {[%emt 0:00:35]} Qg6 {[%emt 0:00:34]} 41. Qd3 {[%emt 0:01:25]} Qf7 {[%emt 0:00:31]} 42. b4 {[%emt 0:00:31]} gxf4 {[%emt 0:00:16]} 43. gxf4 {[%emt 0:01:27]} Qh5 {[%emt 0:00:33]} 44. Rg2 {[%emt 0:01:14]} Rh6 {[%emt 0:00:38]} 45. Rg3 {[%emt 0:00:07]} Qf7 {[%emt 0:00:36]} 46. Rg5 {[%emt 0:01:02]} g6 {[%emt 0:00:52]} 47. Qc2 {[%emt 0:00:30]} Qh7 {[%emt 0:00:00]} 48. Qxf5 {[%emt 0:00:08]} Qf7 {[%emt 0:01:06]} 49. Qc8+ {[%emt 0:00:30]} Kh7 {[%emt 0:00:00]} 50. Qxc6 {[%emt 0:00:46]} d4 {[%emt 0:00:00]} 51. e6 {[%emt 0:00:32]} Qg7 {[%emt 0:00:14]} 52. exd4 {[%emt 0:00:53]} Qxd4 {[%emt 0:00:53]} 53. Qd7+ {[%emt 0:00:11]} Qg7 {[%emt 0:00:19]} 54. e7 {[%emt 0:01:35]} Qb2+ {[%emt 0:00:50]} 55. Rg2 {[%emt 0:00:06]} 1-0

[Event "FIDE World Cadets GU12 2022"]
[Site "Batumi"]
[Date "2022.09.17"]
[Round "2.14"]
[White "Mateeva, Yana"]
[Black "Gan, Emily Cathay"]
[Result "0-1"]
[ECO "A05"]
[WhiteElo "1306"]
[BlackElo "1550"]
[Annotator "NA COMBH"]
[PlyCount "64"]
[EventDate "2022.09.16"]
[EventType "swiss"]
[EventCountry "GEO"]
[SourceTitle "playchess.com"]
[Source "ChessBase"]
[SourceQuality "1"]
[TimeControl "5400+30"]

1. b3 {[%emt 0:04:00]} Nf6 {[%emt 0:01:00]} 2. Bb2 {[%emt 0:00:00]} e6 {[%emt 0:00:30]} 3. Nf3 {[%emt 0:01:00]} g6 {[%emt 0:00:30]} 4. e3 {[%emt 0:02:30]} Bg7 {[%emt 0:00:30]} 5. Be2 {[%emt 0:04:30]} O-O {[%emt 0:02:30]} 6. O-O {[%emt 0:01:30]} d5 {[%emt 0:03:30]} 7. d3 {[%emt 0:04:30]} Nbd7 {[%emt 0:04:30]} 8. Nbd2 {[%emt 0:02:30]} Re8 {[%emt 0:03:30]} 9. c4 {[%emt 0:06:30]} e5 {[%emt 0:10:30]} 10. cxd5 {[%emt 0:03:30]} Nxd5 {[%emt 0:00:30]} 11. Nc4 {[%emt 0:03:30]} b5 {[%emt 0:02:30]} 12. Ncd2 {[%emt 0:06:30]} Bb7 {[%emt 0:08:30]} 13. d4 {[%emt 0:11:30]} e4 {[%emt 0:02:30]} 14. Ne1 {[%emt 0:00:30]} a6 {[%emt 0:00:30]} 15. Rc1 {[%emt 0:03:30]} f5 {[%emt 0:04:30]} 16. Nb1 {[%emt 0:06:30]} f4 {[%emt 0:04:30]} 17. exf4 {[%emt 0:03:30]} Nxf4 {[%emt 0:01:30]} 18. Qd2 {[%emt 0:02:30]} Qg5 {[%emt 0:05:30]} 19. Rxc7 {[%emt 0:06:30]} Nh3+ {[%emt 0:11:30]} 20. Kh1 {[%emt 0:00:30]} Nxf2+ {[%emt 0:01:30]} 21. Kg1 {[%emt 0:03:30]} e3 {[%emt 0:01:30]} 22. Qc3 {[%emt 0:04:41]} Rac8 {[%emt 0:05:30]} 23. Bf3 {[%emt 0:05:55]} Rxc7 {[%emt 0:04:30]} 24. Qxc7 {[%emt 0:00:47]} Bxf3 {[%emt 0:00:30]} 25. Nxf3 {[%emt 0:00:08]} Qd8 {[%emt 0:00:30]} 26. Qc3 {[%emt 0:02:38]} Nb6 {[%emt 0:03:48]} 27. Bc1 {[%emt 0:01:17]} Nd5 {[%emt 0:00:55]} 28. Qb2 {[%emt 0:02:20]} Nd3 {[%emt 0:00:30]} 29. Qc2 {[%emt 0:00:09]} N5b4 {[%emt 0:02:38]} 30. Qe2 {[%emt 0:01:29]} Nf4 {[%emt 0:00:30]} 31. Qe1 {[%emt 0:00:10]} Nbd3 {[%emt 0:00:18]} 32. Qg3 {[%emt 0:02:14]} Ne2+ {[%emt 0:00:35]} 0-1

[Event "FIDE World Cadets GU12 2022"]
[Site "Batumi"]
[Date "2022.09.17"]
[Round "2.15"]
[White "Bauer, Laura Sophie"]
[Black "Belaya, Liliya"]
[Result "0-1"]
[ECO "C67"]
[WhiteElo "1506"]
[BlackElo "1266"]
[Annotator "NA COMBH"]
[PlyCount "98"]
[EventDate "2022.09.16"]
[EventType "swiss"]
[EventCountry "GEO"]
[SourceTitle "playchess.com"]
[Source "ChessBase"]
[SourceQuality "1"]
[TimeControl "5400+30"]

1. e4 {[%emt 0:01:00]} e5 {[%emt 0:01:00]} 2. Nf3 {[%emt 0:00:30]} Nc6 {[%emt 0:00:30]} 3. Bb5 {[%emt 0:00:30]} Nf6 {[%emt 0:00:30]} 4. O-O {[%emt 0:00:30]} Nxe4 {[%emt 0:00:30]} 5. Re1 {[%emt 0:00:30]} Nd6 {[%emt 0:00:30]} 6. Nxe5 {[%emt 0:00:00]} Nxe5 {[%emt 0:00:00]} 7. Rxe5+ {[%emt 0:00:00]} Be7 {[%emt 0:00:00]} 8. Bf1 {[%emt 0:00:00]} O-O {[%emt 0:00:00]} 9. d4 {[%emt 0:00:00]} Bf6 {[%emt 0:00:00]} 10. Re1 {[%emt 0:00:00]} Re8 {[%emt 0:00:00]} 11. c3 {[%emt 0:00:00]} Nf5 {[%emt 0:00:00]} 12. Bf4 {[%emt 0:00:30]} d6 {[%emt 0:01:30]} 13. Bd3 {[%emt 0:01:30]} Bd7 {[%emt 0:00:30]} 14. Rxe8+ {[%emt 0:01:30]} Qxe8 {[%emt 0:00:30]} 15. Nd2 {[%emt 0:00:30]} Qe7 {[%emt 0:00:30]} 16. Ne4 {[%emt 0:06:30]} Bc6 {[%emt 0:01:30]} 17. Nxf6+ {[%emt 0:01:30]} Qxf6 {[%emt 0:00:30]} 18. Qg4 {[%emt 0:02:30]} Nh6 {[%emt 0:03:30]} 19. Qg3 {[%emt 0:06:30]} Re8 {[%emt 0:01:30]} 20. f3 {[%emt 0:09:30]} Qe6 {[%emt 0:19:30]} 21. Bd2 {[%emt 0:14:30]} Qf6 {[%emt 0:11:30]} 22. Bg5 {[%emt 0:08:30]} Qe6 {[%emt 0:01:30]} 23. Qf4 {[%emt 0:01:30]} Kh8 {[%emt 0:06:30]} 24. c4 {[%emt 0:02:30]} d5 {[%emt 0:01:30]} 25. cxd5 {[%emt 0:02:30]} Qxd5 {[%emt 0:05:30]} 26. b3 {[%emt 0:03:30]} Ng8 {[%emt 0:03:30]} 27. Bc4 {[%emt 0:00:30]} Qd7 {[%emt 0:00:30]} 28. Bxf7 {[%emt 0:08:30]} Rf8 {[%emt 0:01:30]} 29. Be6 {[%emt 0:00:30]} Qe8 {[%emt 0:04:30]} 30. Qg4 {[%emt 0:01:30]} h6 {[%emt 0:00:30]} 31. Bxg8 {[%emt 0:03:30]} Rxg8 {[%emt 0:00:30]} 32. Qh4 {[%emt 0:01:30]} Qg6 {[%emt 0:01:30]} 33. f4 {[%emt 0:02:30]} Qe4 {[%emt 0:00:30]} 34. Qf2 {[%emt 0:03:06]} hxg5 {[%emt 0:00:30]} 35. fxg5 {[%emt 0:00:16]} Rd8 {[%emt 0:00:30]} 36. Rd1 {[%emt 0:01:22]} Kg8 {[%emt 0:00:30]} 37. h4 {[%emt 0:01:01]} Qg4 {[%emt 0:01:30]} 38. Rd3 {[%emt 0:01:11]} Rf8 {[%emt 0:02:30]} 39. Qd2 {[%emt 0:00:43]} Qxh4 {[%emt 0:00:30]} 40. Rh3 {[%emt 0:00:30]} Qf4 {[%emt 0:01:30]} 41. Qe2 {[%emt 0:01:38]} Qxd4+ {[%emt 0:00:30]} 42. Kh1 {[%emt 0:00:52]} Re8 {[%emt 0:01:30]} 43. Qf1 {[%emt 0:02:11]} Qd5 {[%emt 0:00:30]} 44. Qf2 {[%emt 0:02:18]} Qxg5 {[%emt 0:03:30]} 45. Kh2 {[%emt 0:01:42]} Qe5+ {[%emt 0:00:30]} 46. Rg3 {[%emt 0:00:42]} Re6 {[%emt 0:00:30]} 47. Qd2 {[%emt 0:00:20]} Rg6 {[%emt 0:01:30]} 48. Qd8+ {[%emt 0:01:14]} Kh7 {[%emt 0:00:30]} 49. Qh4+ {[%emt 0:00:30]} Rh6 {[%emt 0:00:30]} 0-1

[Event "FIDE World Cadets GU12 2022"]
[Site "Batumi"]
[Date "2022.09.17"]
[Round "2.16"]
[White "Derlich, Sarah Sima"]
[Black "Kush, Agniya"]
[Result "1/2-1/2"]
[ECO "B52"]
[WhiteElo "1490"]
[BlackElo "1131"]
[Annotator "NA COMBH"]
[PlyCount "68"]
[EventDate "2022.09.16"]
[EventType "swiss"]
[EventCountry "GEO"]
[SourceTitle "playchess.com"]
[Source "ChessBase"]
[SourceQuality "1"]
[TimeControl "5400+30"]

1. e4 {[%emt 0:01:00]} c5 {[%emt 0:01:00]} 2. Nf3 {[%emt 0:00:30]} d6 {[%emt 0:00:30]} 3. Bb5+ {[%emt 0:00:30]} Bd7 {[%emt 0:00:00]} 4. Bxd7+ {[%emt 0:00:00]} Nxd7 {[%emt 0:00:00]} 5. O-O {[%emt 0:01:00]} g6 {[%emt 0:00:00]} 6. c3 {[%emt 0:00:30]} Bg7 {[%emt 0:00:00]} 7. d4 {[%emt 0:00:30]} cxd4 {[%emt 0:00:30]} 8. cxd4 {[%emt 0:00:30]} Ngf6 {[%emt 0:00:30]} 9. Nc3 {[%emt 0:00:30]} O-O {[%emt 0:00:00]} 10. Bg5 {[%emt 0:04:30]} Rc8 {[%emt 0:00:00]} 11. Rc1 {[%emt 0:00:30]} a6 {[%emt 0:00:30]} 12. h3 {[%emt 0:01:30]} b5 {[%emt 0:00:30]} 13. e5 {[%emt 0:03:30]} dxe5 {[%emt 0:07:30]} 14. dxe5 {[%emt 0:00:30]} Ne8 {[%emt 0:01:30]} 15. Bxe7 {[%emt 0:00:30]} Qxe7 {[%emt 0:01:30]} 16. Nd5 {[%emt 0:00:30]} Qe6 {[%emt 0:03:30]} 17. Rxc8 {[%emt 0:00:30]} Nxe5 {[%emt 0:00:30]} 18. Rc2 {[%emt 0:01:30]} Nd6 {[%emt 0:09:30]} 19. Nc7 {[%emt 0:05:30]} Qf5 {[%emt 0:03:30]} 20. Nd4 {[%emt 0:05:30]} Qd7 {[%emt 0:07:30]} 21. Nxa6 {[%emt 0:02:30]} Ndc4 {[%emt 0:07:30]} 22. b3 {[%emt 0:04:30]} Nb6 {[%emt 0:01:30]} 23. Nc5 {[%emt 0:01:30]} Qe7 {[%emt 0:01:30]} 24. Re1 {[%emt 0:05:30]} Rd8 {[%emt 0:05:30]} 25. Qc1 {[%emt 0:07:30]} Rxd4 {[%emt 0:07:30]} 26. f4 {[%emt 0:06:30]} Bh6 {[%emt 0:02:30]} 27. Qe3 {[%emt 0:07:30]} Bxf4 {[%emt 0:21:18]} 28. Qf2 {[%emt 0:12:30]} Nd5 {[%emt 0:05:02]} 29. Kh1 {[%emt 0:02:30]} Ne3 {[%emt 0:05:55]} 30. Rcc1 {[%emt 0:04:30]} Qd6 {[%emt 0:00:00]} 31. Rxe3 {[%emt 0:02:04]} Bxe3 {[%emt 0:00:00]} 32. Qxe3 {[%emt 0:00:01]} Rd1+ {[%emt 0:06:52]} 33. Rxd1 {[%emt 0:00:30]} Qxd1+ {[%emt 0:00:02]} 34. Kh2 {[%emt 0:00:46]} Qd6 {[%emt 0:00:29]} 1/2-1/2

[Event "FIDE World Cadets GU12 2022"]
[Site "Batumi"]
[Date "2022.09.17"]
[Round "2.17"]
[White "Diloyan, Angelina"]
[Black "Aydogan, Arya"]
[Result "0-1"]
[ECO "D00"]
[WhiteElo "1207"]
[BlackElo "1489"]
[Annotator "NA COMBH"]
[PlyCount "146"]
[EventDate "2022.09.16"]
[EventType "swiss"]
[EventCountry "GEO"]
[SourceTitle "playchess.com"]
[Source "ChessBase"]
[SourceQuality "1"]
[TimeControl "5400+30"]

1. d4 {[%emt 0:01:00]} d5 {[%emt 0:01:00]} 2. Nc3 {[%emt 0:00:00]} e6 {[%emt 0:02:30]} 3. Bf4 {[%emt 0:00:00]} Bd6 {[%emt 0:00:30]} 4. Qd2 {[%emt 0:02:30]} Nf6 {[%emt 0:03:30]} 5. Nf3 {[%emt 0:02:30]} b6 {[%emt 0:02:30]} 6. Bxd6 {[%emt 0:02:30]} Qxd6 {[%emt 0:00:30]} 7. Ne5 {[%emt 0:03:30]} a6 {[%emt 0:02:30]} 8. g3 {[%emt 0:04:30]} Bb7 {[%emt 0:00:30]} 9. Bg2 {[%emt 0:02:30]} O-O {[%emt 0:01:30]} 10. O-O {[%emt 0:06:30]} Nbd7 {[%emt 0:00:30]} 11. f4 {[%emt 0:03:30]} c5 {[%emt 0:02:30]} 12. e3 {[%emt 0:04:30]} Rac8 {[%emt 0:01:30]} 13. Nxd7 {[%emt 0:03:30]} Qxd7 {[%emt 0:00:30]} 14. Rad1 {[%emt 0:03:30]} Rfd8 {[%emt 0:02:30]} 15. Ne2 {[%emt 0:04:30]} Qc7 {[%emt 0:09:30]} 16. c3 {[%emt 0:05:30]} b5 {[%emt 0:03:30]} 17. h3 {[%emt 0:04:30]} a5 {[%emt 0:05:30]} 18. a3 {[%emt 0:05:30]} Ba6 {[%emt 0:02:30]} 19. dxc5 {[%emt 0:03:30]} Qxc5 {[%emt 0:00:30]} 20. Kh2 {[%emt 0:02:30]} Qc7 {[%emt 0:08:30]} 21. Kh1 {[%emt 0:04:30]} e5 {[%emt 0:04:30]} 22. g4 {[%emt 0:02:30]} Ne4 {[%emt 0:03:30]} 23. Bxe4 {[%emt 0:02:30]} dxe4 {[%emt 0:00:30]} 24. Qc2 {[%emt 0:01:30]} b4 {[%emt 0:02:30]} 25. axb4 {[%emt 0:05:30]} axb4 {[%emt 0:03:30]} 26. Rfe1 {[%emt 0:01:52]} Bd3 {[%emt 0:04:30]} 27. Qb3 {[%emt 0:02:12]} bxc3 {[%emt 0:00:30]} 28. bxc3 {[%emt 0:02:19]} Rb8 {[%emt 0:02:30]} 29. Qa4 {[%emt 0:02:03]} Ra8 {[%emt 0:02:30]} 30. Qb3 {[%emt 0:00:51]} Rdb8 {[%emt 0:01:30]} 31. Qd5 {[%emt 0:01:08]} Ra5 {[%emt 0:00:00]} 32. Rxd3 {[%emt 0:01:35]} Rxd5 {[%emt 0:00:00]} 33. Rxd5 {[%emt 0:00:02]} exf4 {[%emt 0:02:30]} 34. exf4 {[%emt 0:01:37]} h6 {[%emt 0:03:30]} 35. Rd4 {[%emt 0:03:43]} Qc6 {[%emt 0:01:30]} 36. Kg1 {[%emt 0:01:30]} Rb2 {[%emt 0:00:30]} 37. Kf2 {[%emt 0:02:44]} Qxc3 {[%emt 0:02:30]} 38. Rxe4 {[%emt 0:01:14]} Qxh3 {[%emt 0:00:00]} 39. Rg1 {[%emt 0:00:21]} Qh4+ {[%emt 0:01:05]} 40. Rg3 {[%emt 0:00:11]} Rb3 {[%emt 0:01:17]} 41. f5 {[%emt 0:00:43]} Kh7 {[%emt 0:03:28]} 42. Rf4 {[%emt 0:00:55]} Rxg3 {[%emt 0:04:41]} 43. Nxg3 {[%emt 0:00:05]} Qf6 {[%emt 0:02:45]} 44. Nh5 {[%emt 0:00:54]} Qb2+ {[%emt 0:00:35]} 45. Kg3 {[%emt 0:00:26]} Qc3+ {[%emt 0:00:27]} 46. Kf2 {[%emt 0:00:30]} Qd2+ {[%emt 0:00:30]} 47. Kg3 {[%emt 0:00:30]} Qe3+ {[%emt 0:00:30]} 48. Kg2 {[%emt 0:00:00]} g6 {[%emt 0:02:10]} 49. fxg6+ {[%emt 0:01:21]} fxg6 {[%emt 0:00:30]} 50. Nf6+ {[%emt 0:00:11]} Kg7 {[%emt 0:00:12]} 51. Rf2 {[%emt 0:00:12]} Qe5 {[%emt 0:01:31]} 52. Kh3 {[%emt 0:00:54]} Qe3+ {[%emt 0:03:26]} 53. Kg2 {[%emt 0:00:06]} Qxf2+ {[%emt 0:01:56]} 54. Kxf2 {[%emt 0:00:33]} Kxf6 {[%emt 0:00:30]} 55. Kf3 {[%emt 0:00:30]} Ke5 {[%emt 0:00:00]} 56. Ke3 {[%emt 0:00:02]} g5 {[%emt 0:00:00]} 57. Kf3 {[%emt 0:00:45]} Kd4 {[%emt 0:00:07]} 58. Kf2 {[%emt 0:00:41]} Ke4 {[%emt 0:00:30]} 59. Kg3 {[%emt 0:00:02]} Ke3 {[%emt 0:00:00]} 60. Kg2 {[%emt 0:00:30]} Kf4 {[%emt 0:00:20]} 61. Kh3 {[%emt 0:00:30]} Kf3 {[%emt 0:00:30]} 62. Kh2 {[%emt 0:00:30]} Kxg4 {[%emt 0:00:00]} 63. Kg2 {[%emt 0:00:00]} h5 {[%emt 0:00:00]} 64. Kh2 {[%emt 0:00:04]} h4 {[%emt 0:00:18]} 65. Kg2 {[%emt 0:00:30]} h3+ {[%emt 0:00:30]} 66. Kg1 {[%emt 0:00:00]} Kg3 {[%emt 0:00:00]} 67. Kh1 {[%emt 0:00:00]} g4 {[%emt 0:00:00]} 68. Kg1 {[%emt 0:00:00]} h2+ {[%emt 0:00:08]} 69. Kh1 {[%emt 0:00:00]} Kf2 {[%emt 0:00:30]} 70. Kxh2 {[%emt 0:00:07]} g3+ {[%emt 0:00:00]} 71. Kh1 {[%emt 0:00:00]} g2+ {[%emt 0:00:06]} 72. Kh2 {[%emt 0:00:15]} g1=Q+ {[%emt 0:00:30]} 73. Kh3 {[%emt 0:00:30]} Qg3# {[%emt 0:00:00]} 0-1

[Event "FIDE World Cadets GU12 2022"]
[Site "Batumi"]
[Date "2022.09.17"]
[Round "2.18"]
[White "Krkyasharyan, Sona"]
[Black "Hamadeh, Sally"]
[Result "1-0"]
[ECO "E11"]
[WhiteElo "1484"]
[BlackElo "1096"]
[Annotator "NA COMBH"]
[PlyCount "127"]
[EventDate "2022.09.16"]
[EventType "swiss"]
[EventCountry "GEO"]
[SourceTitle "playchess.com"]
[Source "ChessBase"]
[SourceQuality "1"]
[TimeControl "5400+30"]

1. d4 {[%emt 0:01:00]} Nf6 {[%emt 0:01:00]} 2. c4 {[%emt 0:00:30]} e6 {[%emt 0:00:30]} 3. g3 {[%emt 0:00:00]} Bb4+ {[%emt 0:00:30]} 4. Bd2 {[%emt 0:00:00]} Bxd2+ {[%emt 0:00:30]} 5. Nxd2 {[%emt 0:00:00]} O-O {[%emt 0:00:30]} 6. Bg2 {[%emt 0:00:00]} d6 {[%emt 0:00:30]} 7. Ngf3 {[%emt 0:00:00]} Nbd7 {[%emt 0:00:30]} 8. O-O {[%emt 0:00:00]} b6 {[%emt 0:03:30]} 9. Ne5 {[%emt 0:08:30]} d5 {[%emt 0:06:30]} 10. Nc6 {[%emt 0:03:30]} Qe8 {[%emt 0:01:30]} 11. e4 {[%emt 0:04:30]} Nxe4 {[%emt 0:05:30]} 12. Nxe4 {[%emt 0:00:30]} dxe4 {[%emt 0:00:30]} 13. Bxe4 {[%emt 0:00:00]} Bb7 {[%emt 0:02:30]} 14. Qc2 {[%emt 0:00:00]} Nf6 {[%emt 0:01:30]} 15. Ne7+ {[%emt 0:00:30]} Qxe7 {[%emt 0:00:30]} 16. Bxb7 {[%emt 0:00:30]} Rad8 {[%emt 0:00:30]} 17. d5 {[%emt 0:12:30]} exd5 {[%emt 0:05:30]} 18. cxd5 {[%emt 0:00:30]} Nxd5 {[%emt 0:01:30]} 19. Rfe1 {[%emt 0:01:30]} Qd7 {[%emt 0:08:30]} 20. Rad1 {[%emt 0:14:30]} Qb5 {[%emt 0:07:30]} 21. Bc6 {[%emt 0:11:30]} Qa5 {[%emt 0:04:30]} 22. Re5 {[%emt 0:03:30]} Nb4 {[%emt 0:06:30]} 23. Rxa5 {[%emt 0:01:30]} Nxc2 {[%emt 0:00:30]} 24. Rxd8 {[%emt 0:00:00]} Rxd8 {[%emt 0:00:30]} 25. Rxa7 {[%emt 0:00:00]} Nd4 {[%emt 0:02:30]} 26. Rxc7 {[%emt 0:00:30]} Nxc6 {[%emt 0:00:30]} 27. Rxc6 {[%emt 0:00:30]} Rb8 {[%emt 0:00:30]} 28. Kf1 {[%emt 0:00:30]} Kf8 {[%emt 0:01:30]} 29. Ke2 {[%emt 0:00:00]} Ke7 {[%emt 0:00:30]} 30. Rc7+ {[%emt 0:02:00]} Kf6 {[%emt 0:02:30]} 31. Kd3 {[%emt 0:00:00]} Rd8+ {[%emt 0:02:30]} 32. Kc3 {[%emt 0:01:00]} Ra8 {[%emt 0:01:30]} 33. a3 {[%emt 0:00:30]} Rb8 {[%emt 0:00:30]} 34. Kb4 {[%emt 0:00:30]} Ke6 {[%emt 0:00:30]} 35. Kb5 {[%emt 0:00:00]} Rd8 {[%emt 0:02:30]} 36. Rc2 {[%emt 0:01:00]} Rd5+ {[%emt 0:01:30]} 37. Kxb6 {[%emt 0:00:00]} Rh5 {[%emt 0:01:30]} 38. h4 {[%emt 0:00:00]} Ke7 {[%emt 0:01:30]} 39. a4 {[%emt 0:00:30]} Re5 {[%emt 0:00:30]} 40. a5 {[%emt 0:00:00]} h5 {[%emt 0:00:30]} 41. a6 {[%emt 0:00:00]} Re6+ {[%emt 0:01:30]} 42. Kb7 {[%emt 0:00:30]} Re4 {[%emt 0:00:30]} 43. a7 {[%emt 0:00:30]} Rb4+ {[%emt 0:00:30]} 44. Kc8 {[%emt 0:00:30]} Ra4 {[%emt 0:00:30]} 45. Rc7+ {[%emt 0:00:00]} Ke6 {[%emt 0:00:30]} 46. Kb8 {[%emt 0:00:00]} Rb4+ {[%emt 0:00:30]} 47. Rb7 {[%emt 0:00:00]} Rd4 {[%emt 0:00:00]} 48. a8=Q {[%emt 0:00:00]} Rd8+ {[%emt 0:00:00]} 49. Ka7 {[%emt 0:00:00]} Rxa8+ {[%emt 0:00:30]} 50. Kxa8 {[%emt 0:00:00]} g6 {[%emt 0:00:30]} 51. b4 {[%emt 0:00:00]} f5 {[%emt 0:00:30]} 52. b5 {[%emt 0:00:00]} Ke5 {[%emt 0:00:30]} 53. Rg7 {[%emt 0:00:30]} Ke4 {[%emt 0:00:30]} 54. Rxg6 {[%emt 0:00:00]} Kf3 {[%emt 0:00:30]} 55. Rg5 {[%emt 0:00:00]} Kxf2 {[%emt 0:00:30]} 56. Rxf5+ {[%emt 0:00:30]} Kxg3 {[%emt 0:00:30]} 57. Rxh5 {[%emt 0:00:00]} Kh3 {[%emt 0:00:00]} 58. Rg5 {[%emt 0:00:00]} Kxh4 {[%emt 0:00:00]} 59. Rg8 {[%emt 0:00:00]} Kh3 {[%emt 0:00:30]} 60. b6 {[%emt 0:00:00]} Kh2 {[%emt 0:00:30]} 61. b7 {[%emt 0:00:00]} Kh1 {[%emt 0:00:30]} 62. Rg7 {[%emt 0:00:00]} Kh2 {[%emt 0:00:30]} 63. b8=Q+ {[%emt 0:00:00]} Kh1 {[%emt 0:00:00]} 64. Qh8# {[%emt 0:00:00]} 1-0